bitfinex-derivatives/quotes_BTCF0:USTF0_20250509
["timestamp","ask_amount","ask_price","bid_price","bid_amount"]
[1746806651470,0.56702478,102750.0,102740.0,0.35507262]
[1746806651670,0.59742478,102750.0,102740.0,0.54974842]
[1746806652068,0.59742478,102750.0,102740.0,0.73698923]
[1746806652371,0.56702478,102750.0,102740.0,0.73698923]
[1746806652569,0.20622478,102750.0,102740.0,0.54974842]
[1746806652768,0.20622478,102750.0,102740.0,0.73698923]
[1746806652975,0.20622478,102750.0,102740.0,0.35507262]
[1746806653175,0.56702478,102750.0,102740.0,0.38974842]
[1746806653473,0.59902478,102750.0,102740.0,0.38974842]
[1746806654069,0.56702478,102750.0,102740.0,0.57698923]
[1746806654270,0.01156788,102750.0,102740.0,0.67431723]
[1746806654459,0.20622478,102750.0,102740.0,0.67431723]
[1746806654772,0.002,102750.0,102740.0,1.07475723]
[1746806654970,0.002,102750.0,102740.0,1.089889]
[1746806655272,0.6041072,102760.0,102750.0,0.1946569]
[1746806655467,0.6041072,102760.0,102750.0,0.42139787]
[1746806655672,0.6113972,102760.0,102750.0,0.33147705]
[1746806655869,0.6113972,102760.0,102750.0,0.63117796]
[1746806656174,0.6113972,102760.0,102750.0,0.79117796]
[1746806656477,0.6123972,102760.0,102750.0,0.79417796]
[1746806656669,0.6123972,102760.0,102750.0,0.50961716]
[1746806656871,0.6438972,102760.0,102750.0,0.41228883]
[1746806657581,0.6438972,102760.0,102750.0,0.25228883]
[1746806657872,0.6438972,102760.0,102750.0,0.05763193]
[1746806657873,0.83113801,102760.0,102750.0,0.05763193]
[1746806658081,0.83213801,102760.0,102750.0,0.06163193]
[1746806658470,0.89513801,102760.0,102750.0,0.06163193]
[1746806659266,0.89413801,102760.0,102750.0,0.05863193]
[1746806659764,0.6739972,102760.0,102750.0,0.25328883]
[1746806660786,0.6739972,102760.0,102750.0,0.05863193]
[1746806660986,0.7041972,102760.0,102750.0,0.25328883]
[1746806661776,0.89143801,102760.0,102750.0,0.05863193]
[1746806662289,1.05043801,102760.0,102750.0,0.04823177]
[1746806662480,1.05043801,102760.0,102750.0,0.04923177]
[1746806662982,1.05043801,102760.0,102750.0,0.01613177]
[1746806663486,1.05043801,102760.0,102730.0,0.45735615]
[1746806663487,0.1946948,102730.0,102720.0,0.23100494]
[1746806663687,0.5554948,102730.0,102720.0,0.23100494]
[1746806663888,0.5872948,102730.0,102720.0,0.2374051]
[1746806664589,0.5872948,102730.0,102720.0,0.0103914]
[1746806664791,0.6199948,102730.0,102720.0,0.2051051]
[1746806665089,0.6209948,102730.0,102720.0,0.2111051]
[1746806665284,0.6209948,102730.0,102720.0,0.0163914]
[1746806665488,0.7711548,102730.0,102720.0,0.0163914]
[1746806665786,0.7721548,102730.0,102720.0,0.2171051]
[1746806665991,0.95939561,102730.0,102720.0,0.0223914]
[1746806666178,1.26983561,102730.0,102720.0,0.01599124]
[1746806669601,1.0825948,102730.0,102720.0,0.01599124]
[1746806669901,1.26983561,102730.0,102720.0,0.01599124]
[1746806670290,1.26983561,102730.0,102720.0,0.04799124]
[1746806670500,1.26983561,102730.0,102720.0,0.0543914]
[1746806671292,1.34352476,102730.0,102720.0,0.0543914]
[1746806672003,1.34352476,102730.0,102720.0,0.0223914]
[1746806672205,1.18352476,102730.0,102720.0,0.0223914]
[1746806672403,1.18352476,102730.0,102720.0,0.01599124]
[1746806673400,0.1947327,102710.0,102700.0,0.1402]
[1746806673595,0.9163327,102710.0,102700.0,0.3349517]
[1746806673799,0.5867327,102710.0,102700.0,0.52859267]
[1746806674001,0.392,102710.0,102700.0,0.65923995]
[1746806674205,0.5867327,102710.0,102700.0,0.81923995]
[1746806674799,0.5887327,102710.0,102700.0,0.82423995]
[1746806675004,0.5907327,102710.0,102700.0,0.83023995]
[1746806675795,0.5907327,102710.0,102700.0,0.54565186]
[1746806676001,0.5907327,102710.0,102700.0,0.56084315]
[1746806676207,0.6235327,102710.0,102700.0,0.40084315]
[1746806676407,0.9938912,102710.0,102700.0,0.20609145]
[1746806676807,0.9938912,102710.0,102700.0,0.17279145]
[1746806677812,0.9938912,102710.0,102700.0,0.36754315]
[1746806678012,0.9938912,102710.0,102700.0,0.39914315]
[1746806678814,0.9938912,102710.0,102700.0,0.17279145]
[1746806679817,1.0011912,102710.0,102700.0,0.17279145]
[1746806680916,1.0011912,102710.0,102700.0,0.40064315]
[1746806681603,1.0011912,102710.0,102700.0,0.36754315]
[1746806682009,1.0011912,102710.0,102700.0,0.17279145]
[1746806682311,1.18843201,102710.0,102700.0,0.14039145]
[1746806683718,1.0011912,102710.0,102700.0,0.14039145]
[1746806683908,0.9991912,102710.0,102700.0,0.13439145]
[1746806684108,0.9991912,102710.0,102700.0,0.35814315]
[1746806684310,0.9991912,102710.0,102700.0,0.57778396]
[1746806684613,0.9991912,102710.0,102700.0,0.39054315]
[1746806685112,0.9991912,102710.0,102700.0,0.5713838]
[1746806685417,0.9991912,102710.0,102700.0,0.42384315]
[1746806687911,0.9991912,102710.0,102700.0,0.22909145]
[1746806688107,0.9663912,102710.0,102700.0,0.42384315]
[1746806688317,0.9965912,102710.0,102700.0,0.42384315]
[1746806690415,1.18383201,102710.0,102700.0,0.12599129]
[1746806690618,1.33391201,102710.0,102700.0,0.12599129]
[1746806690819,1.3487062,102710.0,102700.0,0.12599129]
[1746806691018,1.16146539,102710.0,102700.0,0.12599129]
[1746806691811,1.3487062,102710.0,102700.0,0.12599129]
[1746806692013,1.16146539,102710.0,102700.0,0.12599129]
[1746806692216,1.3487062,102710.0,102700.0,0.12599129]
[1746806693329,1.3487062,102710.0,102700.0,0.18649129]
[1746806693625,1.33340674,102710.0,102700.0,0.18649129]
[1746806695317,1.52064755,102710.0,102700.0,0.12599129]
[1746806696331,1.52064755,102710.0,102700.0,0.12399129]
[1746806697419,1.4469584,102710.0,102700.0,0.12399129]
[1746806698320,1.25971759,102710.0,102700.0,0.12399129]
[1746806698524,1.4469584,102710.0,102700.0,0.12399129]
[1746806699630,1.4469584,102710.0,102700.0,0.15519129]
[1746806699824,1.2449234,102710.0,102700.0,0.15519129]
[1746806700018,1.43216421,102710.0,102700.0,0.15519129]
[1746806700422,1.44667217,102710.0,102700.0,0.15519129]
[1746806700824,1.44667217,102710.0,102700.0,0.12399129]
[1746806701023,1.44667217,102710.0,102700.0,0.09406209]
[1746806701225,1.44667217,102710.0,102660.0,0.39525724]
[1746806701226,0.1948086,102670.0,102660.0,0.39525724]
[1746806701422,0.5556086,102670.0,102660.0,0.66170475]
[1746806701622,0.4581891,102690.0,102670.0,0.0973972]
[1746806701823,0.7016565,102690.0,102680.0,0.38843057]
[1746806702132,0.1948086,102670.0,102660.0,0.39525614]
[1746806702330,0.5556086,102670.0,102660.0,0.42575614]
[1746806702631,0.3608,102670.0,102660.0,0.78008231]
[1746806702936,0.5556086,102670.0,102660.0,0.78008231]
[1746806703140,0.35592753,102670.0,102660.0,1.48936368]
[1746806703433,0.35692753,102670.0,102660.0,1.48936368]
[1746806703642,0.55373613,102670.0,102660.0,1.23936368]
[1746806703828,0.55373613,102670.0,102660.0,1.05212287]
[1746806704025,0.55373613,102670.0,102660.0,0.33276226]
[1746806704333,0.58623613,102670.0,102660.0,0.2519257]
[1746806704533,0.61853613,102670.0,102660.0,0.2519257]
[1746806704936,0.58623613,102670.0,102660.0,0.63399401]
[1746806705338,0.58623613,102670.0,102660.0,1.30139818]
[1746806705839,0.55373613,102670.0,102660.0,1.30139818]
[1746806706039,0.1978086,102670.0,102660.0,1.81183818]
[1746806706230,0.1978086,102670.0,102660.0,1.90924218]
[1746806706537,0.2051086,102670.0,102660.0,1.49924218]
[1746806707338,0.03043,102680.0,102670.0,0.1948086]
[1746806707534,0.2921467,102700.0,102670.0,0.75814081]
[1746806707838,0.2434549,102700.0,102690.0,0.74921157]
[1746806708040,0.194764,102700.0,102690.0,0.74921157]
[1746806708244,0.194764,102700.0,102690.0,1.06708756]
[1746806708440,0.194764,102700.0,102690.0,1.16446328]
[1746806708441,0.46463685,102700.0,102690.0,1.16446328]
[1746806708645,0.46463685,102700.0,102690.0,1.06708729]
[1746806709327,0.47463685,102700.0,102690.0,1.06708729]
[1746806709738,0.46963685,102700.0,102690.0,1.06708729]
[1746806709938,0.47463685,102700.0,102690.0,1.06708729]
[1746806710342,0.27987285,102700.0,102690.0,1.16446328]
[1746806710635,0.27487285,102700.0,102690.0,1.76170409]
[1746806710840,0.27987285,102700.0,102690.0,1.76270409]
[1746806711343,0.27987285,102700.0,102690.0,1.38822247]
[1746806711543,0.27987285,102700.0,102690.0,1.57546328]
[1746806711737,0.01,102700.0,102690.0,1.57546328]
[1746806712242,0.0073,102710.0,102700.0,0.1947517]
[1746806712435,0.0073,102710.0,102700.0,1.00465186]
[1746806712633,0.2020327,102710.0,102700.0,1.28926067]
[1746806712937,0.75007351,102710.0,102700.0,0.19807588]
[1746806713144,0.78227351,102710.0,102700.0,0.2890517]
[1746806713332,0.81257351,102710.0,102700.0,0.2890517]
[1746806713539,0.6253327,102710.0,102700.0,0.2890517]
[1746806714040,0.5950327,102710.0,102700.0,0.48269267]
[1746806714241,0.5950327,102710.0,102700.0,0.73069891]
[1746806714242,0.05526578,102710.0,102700.0,0.73069891]
[1746806714541,0.41606578,102710.0,102700.0,0.73069891]
[1746806714839,0.02306578,102710.0,102700.0,0.73069891]
[1746806715037,0.02306578,102710.0,102700.0,1.14069891]
[1746806715237,0.02906578,102710.0,102700.0,1.30169891]
[1746806715435,0.02906578,102710.0,102700.0,0.89169891]
[1746806716043,0.0193,102710.0,102700.0,1.30169891]
[1746806716238,0.0193,102710.0,102700.0,1.34986691]
[1746806716639,0.0193,102710.0,102700.0,0.98906691]
[1746806717638,0.2140327,102710.0,102700.0,0.8538981]
[1746806717938,0.6058327,102710.0,102700.0,0.8538981]
[1746806718142,0.6360327,102710.0,102700.0,0.38841794]
[1746806718443,0.6668327,102710.0,102700.0,0.2591517]
[1746806718631,0.85407351,102710.0,102700.0,0.2268517]
[1746806718831,0.85407351,102710.0,102700.0,0.0321]
[1746806719034,0.85407351,102710.0,102700.0,0.1967517]
[1746806720143,1.01407351,102710.0,102700.0,0.002]
[1746806720439,0.1947896,102680.0,102670.0,0.374]
[1746806720647,0.5555896,102680.0,102670.0,0.8162]
[1746806720846,0.5880896,102680.0,102670.0,0.82260016]
[1746806721138,0.5880896,102680.0,102670.0,1.02466371]
[1746806721845,0.5880896,102680.0,102670.0,0.8384229]
[1746806722441,0.5880896,102680.0,102670.0,0.9880629]
[1746806722633,0.5880896,102680.0,102670.0,0.5780629]
[1746806722834,0.5950896,102680.0,102670.0,0.5790629]
[1746806723240,0.5950896,102680.0,102670.0,0.6120629]
[1746806723539,0.5950896,102680.0,102670.0,0.0563229]
[1746806723845,0.81493041,102680.0,102670.0,0.21163134]
[1746806724046,0.6276896,102680.0,102670.0,0.24273134]
[1746806724733,0.6276896,102680.0,102670.0,0.43637231]
[1746806724938,0.5950896,102680.0,102670.0,0.564867]
[1746806725144,0.5950896,102680.0,102670.0,0.597867]
[1746806725344,0.5950896,102680.0,102670.0,0.41062619]
[1746806725850,0.4003,102680.0,102670.0,0.597867]
[1746806726037,0.3678,102680.0,102670.0,0.597867]
[1746806726233,0.5625896,102680.0,102670.0,1.056867]
[1746806726445,0.3678,102680.0,102670.0,1.056867]
[1746806726748,0.007,102680.0,102670.0,1.056867]
[1746806726948,0.007,102680.0,102670.0,1.515063]
[1746806727248,0.007,102680.0,102670.0,1.50024026]
[1746806729049,0.1947517,102700.0,102690.0,0.1947706]
[1746806729250,0.5877517,102700.0,102690.0,0.53805157]
[1746806729444,0.5877517,102700.0,102690.0,0.63495157]
[1746806729645,0.5877517,102700.0,102690.0,0.73232729]
[1746806729941,0.5877517,102700.0,102690.0,0.54508648]
[1746806730546,0.6185517,102700.0,102690.0,0.54508648]
[1746806730747,0.6185517,102700.0,102690.0,0.51198648]
[1746806731253,0.6255517,102700.0,102690.0,0.51298648]
[1746806731457,0.6315517,102700.0,102690.0,0.51398648]
[1746806733752,0.6315517,102700.0,102690.0,0.33124648]
[1746806734057,0.6315517,102700.0,102690.0,0.38311076]
[1746806734650,0.4368,102700.0,102690.0,0.66772729]
[1746806734850,0.076,102700.0,102690.0,0.69902729]
[1746806735050,0.2707517,102700.0,102690.0,0.69902729]
[1746806735947,0.013,102700.0,102690.0,1.2470681]
[1746806736150,0.013,102700.0,102690.0,1.50444409]
[1746806736551,0.044,102700.0,102690.0,1.12996247]
[1746806736750,0.044,102700.0,102690.0,0.95640328]
[1746806736953,0.2327517,102700.0,102690.0,0.95540328]
[1746806737253,0.2387517,102700.0,102690.0,0.67178648]
[1746806737457,0.2696517,102700.0,102690.0,0.85902729]
[1746806737762,0.2636517,102700.0,102690.0,0.85802729]
[1746806737953,0.0709,102700.0,102690.0,0.85802729]
[1746806738258,0.2656517,102700.0,102690.0,0.69802729]
[1746806738461,0.2616517,102700.0,102690.0,0.69802729]
[1746806740164,0.036,102700.0,102690.0,0.69162713]
[1746806740462,0.036,102700.0,102690.0,0.69802729]
[1746806741160,0.036,102700.0,102690.0,0.85802729]
[1746806741362,0.036,102700.0,102690.0,1.4060681]
[1746806742259,0.036,102700.0,102690.0,1.21882729]
[1746806743264,0.036,102700.0,102690.0,1.05882729]
[1746806744365,0.036,102700.0,102690.0,1.21882729]
[1746806745166,0.036,102700.0,102690.0,1.05882729]
[1746806747164,0.036,102700.0,102690.0,1.21882729]
[1746806747355,0.036,102700.0,102690.0,1.4060681]
[1746806747550,0.0073,102710.0,102700.0,0.1947517]
[1746806747751,0.0073,102710.0,102700.0,0.99513267]
[1746806748163,0.0377,102710.0,102700.0,1.25250839]
[1746806748957,0.0073,102710.0,102700.0,1.26222278]
[1746806749156,0.0113,102710.0,102700.0,1.36059078]
[1746806749855,0.0073,102710.0,102700.0,1.35959078]
[1746806750052,0.0397,102710.0,102700.0,1.35959078]
[1746806750465,0.0427,102710.0,102700.0,1.35959078]
[1746806750858,0.0301,102720.0,102710.0,0.1947327]
[1746806751059,0.0301,102720.0,102710.0,0.95527351]
[1746806751363,0.0301,102720.0,102710.0,0.76087367]
[1746806751559,0.0301,102720.0,102710.0,0.85823991]
[1746806752461,0.0331,102720.0,102710.0,0.85823991]
[1746806752854,0.0331,102720.0,102710.0,1.62903991]
[1746806753064,1e-08,102720.0,102710.0,1.81628072]
[1746806753254,0.10612669,102740.0,102730.0,0.1946948]
[1746806753456,0.13922669,102740.0,102730.0,0.94753577]
[1746806753663,0.10682669,102740.0,102730.0,1.37313577]
[1746806753861,0.10682669,102740.0,102730.0,1.10967358]
[1746806754466,0.33490249,102740.0,102730.0,1.10967358]
[1746806754666,0.14022669,102740.0,102730.0,1.10967358]
[1746806755068,0.33490249,102740.0,102730.0,1.10967358]
[1746806755265,0.14022669,102740.0,102730.0,1.10967358]
[1746806755564,0.33490249,102740.0,102730.0,1.10967358]
[1746806755959,0.34090249,102740.0,102730.0,1.11067358]
[1746806756159,0.37150249,102740.0,102730.0,1.12539981]
[1746806756770,0.36750249,102740.0,102730.0,1.12439981]
[1746806757264,0.17282669,102740.0,102730.0,1.12439981]
[1746806757670,0.36750249,102740.0,102730.0,1.12439981]
[1746806757859,0.17282669,102740.0,102730.0,1.12439981]
[1746806758167,0.0991,102740.0,102730.0,1.12439981]
[1746806761365,0.2937758,102740.0,102730.0,1.12439981]
[1746806761563,0.0991,102740.0,102730.0,1.12439981]
[1746806761764,0.0991,102740.0,102730.0,0.937159]
[1746806761959,0.0991,102740.0,102730.0,1.12439981]
[1746806762360,0.0667,102740.0,102730.0,1.12439981]
[1746806762662,0.2613758,102740.0,102730.0,1.12439981]
[1746806762862,0.6522758,102740.0,102730.0,0.52206404]
[1746806763168,0.1946948,102730.0,102720.0,0.194713]
[1746806763355,0.1947137,102720.0,102710.0,0.8512395]
[1746806763667,0.6493137,102720.0,102710.0,0.8512395]
[1746806763859,0.6493137,102720.0,102710.0,0.86595125]
[1746806764168,0.6146,102720.0,102710.0,1.05319206]
[1746806764368,0.8093137,102720.0,102710.0,1.11629206]
[1746806764569,0.8093137,102720.0,102710.0,1.11729206]
[1746806765273,0.6493137,102720.0,102710.0,0.93005125]
[1746806765571,0.6493137,102720.0,102710.0,1.11929206]
[1746806765767,0.6493137,102720.0,102710.0,0.86895125]
[1746806766065,0.6493137,102720.0,102710.0,0.82026915]
[1746806766255,0.8093137,102720.0,102710.0,0.82026915]
[1746806766456,0.6146,102720.0,102710.0,0.59750996]
[1746806766765,0.8093137,102720.0,102710.0,0.41026915]
[1746806767164,0.6493137,102720.0,102710.0,0.41026915]
[1746806768465,0.6493137,102720.0,102710.0,0.59750996]
[1746806768970,0.6493137,102720.0,102710.0,0.41026915]
[1746806769865,0.6493137,102720.0,102710.0,0.59750996]
[1746806770063,0.6493137,102720.0,102710.0,0.41026915]
[1746806771063,0.6493137,102720.0,102710.0,0.26110915]
[1746806774470,0.83655451,102720.0,102710.0,0.003]
[1746806774773,0.9102812,102720.0,102710.0,0.003]
[1746806774972,0.9102812,102720.0,102710.0,0.1977327]
[1746806775273,0.88304039,102720.0,102710.0,0.1977327]
[1746806776272,0.88304039,102720.0,102710.0,0.003]
[1746806776768,1.0702812,102720.0,102710.0,0.003]
[1746806778066,0.89753269,102720.0,102710.0,0.1977327]
[1746806778272,0.89753269,102720.0,102710.0,0.38497351]
[1746806778476,0.89753269,102720.0,102710.0,0.44847351]
[1746806779163,0.72304039,102720.0,102710.0,0.45487367]
[1746806779978,0.52832669,102720.0,102710.0,0.45487367]
[1746806780160,0.10652669,102720.0,102710.0,0.55223043]
[1746806780562,0.07372669,102720.0,102710.0,0.96223043]
[1746806780771,0.07372669,102720.0,102710.0,1.90907124]
[1746806780968,0.07372669,102720.0,102710.0,3.40907124]
[1746806781172,0.07372669,102720.0,102710.0,4.83250724]
[1746806781372,0.07372669,102720.0,102710.0,4.29791043]
[1746806781768,0.07372669,102720.0,102710.0,4.44655043]
[1746806782575,0.26844039,102720.0,102710.0,4.08575043]
[1746806782873,0.66224039,102720.0,102710.0,2.58378962]
[1746806783172,0.72534039,102720.0,102710.0,2.61103043]
[1746806783877,0.6516137,102720.0,102710.0,2.61103043]
[1746806785772,0.6516137,102720.0,102710.0,0.4765]
[1746806785969,0.6516137,102720.0,102710.0,0.6712327]
[1746806786369,0.6516137,102720.0,102710.0,2.1712327]
[1746806786579,0.6516137,102720.0,102710.0,2.50727351]
[1746806787268,0.6516137,102720.0,102710.0,2.3200327]
[1746806787476,0.6516137,102720.0,102710.0,2.50727351]
[1746806788479,0.6516137,102720.0,102710.0,2.3200327]
[1746806789272,0.66598135,102720.0,102710.0,0.1845]
[1746806789575,0.66598135,102720.0,102710.0,0.3465327]
[1746806789771,0.66598135,102720.0,102710.0,1.8465327]
[1746806789975,0.66598135,102720.0,102710.0,0.3767327]
[1746806790171,0.66598135,102720.0,102710.0,0.4095327]
[1746806790569,0.67328135,102720.0,102710.0,0.4095327]
[1746806792477,0.67328135,102720.0,102710.0,0.2148]
[1746806792678,0.67328135,102720.0,102710.0,0.182]
[1746806792879,0.67328135,102720.0,102710.0,0.3767327]
[1746806793576,0.67328135,102720.0,102710.0,0.2125]
[1746806794182,0.83328135,102720.0,102710.0,0.2125]
[1746806794488,1.02052216,102720.0,102710.0,0.003]
[1746806794980,0.83328135,102720.0,102710.0,0.003]
[1746806795677,0.93158361,102720.0,102710.0,0.003]
[1746806796277,0.93158361,102720.0,102710.0,0.38497351]
[1746806796479,0.93158361,102720.0,102710.0,0.45547367]
[1746806797181,0.77158361,102720.0,102710.0,0.45547367]
[1746806797583,0.77158361,102720.0,102710.0,0.26823286]
[1746806799685,0.77158361,102720.0,102710.0,0.07350016]
[1746806799987,0.95882442,102720.0,102710.0,0.04130016]
[1746806800189,1.11882442,102720.0,102710.0,0.04130016]
[1746806800486,0.93158361,102720.0,102710.0,0.04130016]
[1746806800789,0.93158361,102720.0,102710.0,0.2296327]
[1746806800979,0.93158361,102720.0,102710.0,0.2618327]
[1746806801784,0.93158361,102720.0,102710.0,0.0671]
[1746806801990,1.11882442,102720.0,102710.0,0.003]
[1746806802383,0.1947327,102710.0,102700.0,0.41]
[1746806802685,0.1947706,102690.0,102680.0,0.781072]
[1746806802883,0.5555706,102690.0,102680.0,0.78747216]
[1746806803077,0.5884706,102690.0,102680.0,1.07207921]
[1746806804287,0.6186706,102690.0,102680.0,1.10507921]
[1746806804589,0.6196706,102690.0,102680.0,1.11107921]
[1746806804782,0.392,102690.0,102680.0,1.11107921]
[1746806804987,0.001,102690.0,102680.0,1.11107921]
[1746806805191,0.002,102690.0,102680.0,2.03631921]
[1746806805390,0.1967706,102690.0,102680.0,1.42551921]
[1746806805691,0.002,102690.0,102680.0,1.44042946]
[1746806806288,0.1967706,102690.0,102680.0,1.44042946]
[1746806809898,0.002,102690.0,102680.0,1.44042946]
[1746806814201,0.002,102690.0,102680.0,1.98847027]
[1746806814398,0.07394015,102710.0,102700.0,0.1947517]
[1746806814595,0.07394015,102710.0,102700.0,0.68527267]
[1746806814793,0.01520955,102710.0,102700.0,1.51747267]
[1746806815096,0.10580398,102720.0,102710.0,0.1947327]
[1746806815304,0.10580398,102720.0,102710.0,1.03946637]
[1746806815492,0.10580398,102720.0,102710.0,1.13682237]
[1746806815799,0.10580398,102720.0,102710.0,1.03719591]
[1746806816497,0.10580398,102720.0,102710.0,1.38443672]
[1746806816795,0.12266948,102730.0,102720.0,0.56919532]
[1746806817000,0.12266948,102730.0,102720.0,1.26373548]
[1746806817202,0.12266948,102730.0,102720.0,1.45593548]
[1746806817402,0.12266948,102730.0,102720.0,1.55329224]
[1746806818601,0.32715118,102730.0,102720.0,1.36605143]
[1746806818799,0.36015118,102730.0,102720.0,1.36605143]
[1746806818991,0.36015118,102730.0,102720.0,0.81157046]
[1746806819192,0.6630817,102730.0,102720.0,0.65157046]
[1746806819401,0.6630817,102730.0,102720.0,0.83881127]
[1746806819599,0.3022817,102730.0,102720.0,0.83881127]
[1746806819797,0.6630817,102730.0,102720.0,0.83881127]
[1746806820396,0.6630817,102730.0,102720.0,1.25521143]
[1746806821097,0.6630817,102730.0,102720.0,0.95841143]
[1746806821303,0.6630817,102730.0,102720.0,1.25521143]
[1746806822294,0.6630817,102730.0,102720.0,1.24881127]
[1746806822494,0.6630817,102730.0,102720.0,1.25521143]
[1746806823100,0.2384817,102730.0,102720.0,1.25521143]
[1746806823299,0.0107869,102730.0,102720.0,1.44245224]
[1746806823501,0.2054817,102730.0,102720.0,1.25521143]
[1746806823902,0.0107869,102730.0,102720.0,1.25521143]
[1746806824096,0.0107869,102730.0,102720.0,1.80325224]
[1746806824298,0.0107869,102730.0,102720.0,1.44245224]
[1746806824507,0.001,102730.0,102720.0,1.80325224]
[1746806825195,0.001,102730.0,102720.0,1.96325224]
[1746806827106,0.004,102750.0,102740.0,0.1946758]
[1746806827407,0.004,102750.0,102740.0,1.55137677]
[1746806827799,0.004,102750.0,102740.0,1.64872405]
[1746806828497,0.2303569,102750.0,102740.0,1.64872405]
[1746806828706,0.6213569,102750.0,102740.0,1.28792405]
[1746806828908,0.6528569,102750.0,102740.0,1.28792405]
[1746806829108,0.6568569,102750.0,102740.0,1.28792405]
[1746806829306,0.6568569,102750.0,102740.0,1.06268308]
[1746806829503,0.4317,102750.0,102740.0,1.25632405]
[1746806829702,0.6263569,102750.0,102740.0,1.25632405]
[1746806829909,0.6223569,102750.0,102740.0,1.25632405]
[1746806830206,0.6556569,102750.0,102740.0,1.25632405]
[1746806830704,0.2948569,102750.0,102740.0,1.25632405]
[1746806830901,0.0669,102750.0,102740.0,1.25632405]
[1746806831100,0.2615569,102750.0,102740.0,1.25632405]
[1746806831304,0.0669,102750.0,102740.0,1.25632405]
[1746806831502,0.2615569,102750.0,102740.0,1.27084962]
[1746806833110,0.0669,102750.0,102740.0,1.27084962]
[1746806833311,0.2313569,102750.0,102740.0,1.27084962]
[1746806834506,0.2631569,102750.0,102740.0,1.27084962]
[1746806834704,0.6239569,102750.0,102740.0,1.12268962]
[1746806834904,0.6239569,102750.0,102740.0,1.26436946]
[1746806836308,0.6239569,102750.0,102740.0,1.27076962]
[1746806836611,0.6239569,102750.0,102740.0,0.41]
[1746806836803,0.6239569,102750.0,102740.0,0.6046758]
[1746806837208,0.7839569,102750.0,102740.0,0.79191661]
[1746806837713,0.7839569,102750.0,102740.0,0.6046758]
[1746806838303,0.6239569,102750.0,102740.0,0.6046758]
[1746806838612,0.6239569,102750.0,102740.0,0.1946758]
[1746806840316,0.7839569,102750.0,102740.0,0.1946758]
[1746806840517,0.7839569,102750.0,102740.0,0.20940303]
[1746806841017,0.1946758,102740.0,102730.0,0.55816]
[1746806841213,0.6494758,102740.0,102730.0,0.7528548]
[1746806842113,0.8094758,102740.0,102730.0,0.7528548]
[1746806842307,0.8094758,102740.0,102730.0,0.56016]
[1746806842511,0.8134758,102740.0,102730.0,0.56016]
[1746806842711,0.8134758,102740.0,102730.0,0.002]
[1746806842917,1.00071661,102740.0,102730.0,0.002]
[1746806843120,1.00271661,102740.0,102730.0,0.003]
[1746806843313,1.00871661,102740.0,102730.0,0.002]
[1746806843819,1.10605261,102740.0,102730.0,0.002]
[1746806844223,0.1947327,102710.0,102700.0,0.95915155]
[1746806844412,0.5555327,102710.0,102700.0,1.14639236]
[1746806844719,0.6503327,102710.0,102700.0,1.27393017]
[1746806845324,0.0948,102710.0,102700.0,1.64113033]
[1746806845513,0.3608,102720.0,102710.0,0.1947327]
[1746806845714,0.6193137,102720.0,102710.0,0.45117367]
[1746806845910,0.6504137,102720.0,102710.0,0.45117367]
[1746806846113,0.6504137,102720.0,102710.0,0.54853043]
[1746806846813,0.6524137,102720.0,102710.0,0.54853043]
[1746806847715,0.6554137,102720.0,102710.0,0.54853043]
[1746806848518,0.6554137,102720.0,102710.0,0.36128962]
[1746806848713,0.6554137,102720.0,102710.0,0.54853043]
[1746806849313,0.6554137,102720.0,102710.0,0.36128962]
[1746806849918,0.6554137,102720.0,102710.0,0.54853043]
[1746806851121,0.6554137,102720.0,102710.0,0.36128962]
[1746806851321,0.6554137,102720.0,102710.0,0.54853043]
[1746806852323,0.6554137,102720.0,102710.0,0.36128962]
[1746806852622,0.6554137,102720.0,102710.0,0.54853043]
[1746806854325,0.6554137,102720.0,102710.0,0.36128962]
[1746806856122,0.1947327,102710.0,102700.0,1.21514436]
[1746806856321,0.6202327,102710.0,102700.0,0.09159565]
[1746806856526,0.6202327,102710.0,102700.0,0.25514735]
[1746806856914,0.1947517,102700.0,102690.0,0.2921433]
[1746806857217,0.6506517,102700.0,102690.0,0.58315051]
[1746806857521,0.6506517,102700.0,102690.0,0.64755051]
[1746806858313,0.6506517,102700.0,102690.0,0.67425035]
[1746806858517,0.6506517,102700.0,102690.0,0.68065051]
[1746806858827,0.6506517,102700.0,102690.0,0.68165051]
[1746806859028,0.6546517,102700.0,102690.0,0.68165051]
[1746806859425,0.6586517,102700.0,102690.0,0.68065051]
[1746806861427,0.6586517,102700.0,102690.0,0.4934097]
[1746806861627,0.6586517,102700.0,102690.0,0.68065051]
[1746806862831,0.6586517,102700.0,102690.0,0.4934097]
[1746806863129,0.6586517,102700.0,102690.0,0.68065051]
[1746806863537,0.66826171,102700.0,102690.0,0.68065051]
[1746806863829,0.66826171,102700.0,102690.0,0.4934097]
[1746806864225,0.66826171,102700.0,102690.0,0.2012664]
[1746806864525,0.66826171,102700.0,102690.0,0.00640016]
[1746806864526,0.85550252,102700.0,102690.0,0.00640016]
[1746806864828,0.1947706,102690.0,102680.0,0.21074]
[1746806865127,0.7789706,102690.0,102680.0,0.3734296]
[1746806865331,0.1947896,102680.0,102670.0,0.41146086]
[1746806865530,0.6498896,102680.0,102670.0,0.19626946]
[1746806865732,0.6498896,102680.0,102670.0,0.25916946]
[1746806866119,0.8098896,102680.0,102670.0,0.0629]
[1746806866321,0.8098896,102680.0,102670.0,0.2577086]
[1746806866634,0.8098896,102680.0,102670.0,0.0308]
[1746806866834,0.1948086,102670.0,102660.0,1.02259188]
[1746806867135,0.6168923,102680.0,102670.0,0.1948086]
[1746806867323,0.6164923,102680.0,102670.0,0.43310716]
[1746806867531,0.6164923,102680.0,102670.0,0.46500716]
[1746806867832,0.6164923,102680.0,102670.0,0.30876635]
[1746806868027,0.6164923,102680.0,102670.0,0.26310876]
[1746806868234,0.80373311,102680.0,102670.0,0.3548086]
[1746806868425,0.6164923,102680.0,102670.0,0.3548086]
[1746806868625,0.6164923,102680.0,102670.0,0.4167086]
[1746806869225,0.6164923,102680.0,102670.0,0.36949698]
[1746806869433,0.80373311,102680.0,102670.0,0.17468838]
[1746806869620,0.6164923,102680.0,102670.0,0.17468838]
[1746806870030,1.04880912,102680.0,102670.0,0.12478838]
[1746806870331,0.86156831,102680.0,102670.0,0.01468838]
[1746806870526,1.04880912,102680.0,102670.0,0.01468838]
[1746806870727,0.7641723,102680.0,102670.0,0.20949698]
[1746806871232,0.7641723,102680.0,102670.0,0.01468838]
[1746806871635,0.90312912,102680.0,102670.0,0.01468838]
[1746806871834,1.05280912,102680.0,102670.0,0.01468838]
[1746806872531,1.05280912,102680.0,102660.0,0.00130557]
[1746806872532,0.1948086,102670.0,102660.0,0.00130557]
[1746806872724,0.1948465,102650.0,102640.0,0.0936]
[1746806872924,0.1948655,102640.0,102630.0,0.00545628]
[1746806873230,0.77410631,102640.0,102630.0,0.00545628]
[1746806873434,0.80690631,102640.0,102630.0,0.00545628]